bitfinex/quotes_SOLUSD_20250929
["timestamp","ask_amount","ask_price","bid_price","bid_amount"]
[1759104822061,1.19079422,210.36,210.34,16.73969688]
[1759104822268,37.86,210.37,210.34,16.73969688]
[1759104822459,1.85079422,210.36,210.34,16.73969688]
[1759104822777,0.66,210.36,210.34,16.73969688]
[1759104823165,37.2,210.37,210.34,16.73969688]
[1759104823371,1.19079438,210.36,210.34,16.73969688]
[1759104823568,0.66,210.37,210.34,16.73969688]
[1759104825757,37.86,210.38,210.34,16.73969688]
[1759104826078,37.2,210.38,210.34,17.43969688]
[1759104826381,0.66,210.37,210.34,16.73969688]
[1759104826778,37.2,210.38,210.34,16.73969688]
[1759104827080,1.8507342,210.37,210.34,16.73969688]
[1759104827281,0.66,210.37,210.34,16.73969688]
[1759104829485,37.2,210.38,210.34,16.73969688]
[1759104829674,1.850752,210.37,210.34,16.73969688]
[1759104829981,1.19076966,210.36,210.34,16.73969688]
[1759104830187,0.66,210.37,210.34,16.73969688]
[1759104831259,1.19073438,210.36,210.34,16.73969688]
[1759104831460,0.66,210.37,210.34,16.73969688]
[1759104831674,1.19073454,210.36,210.34,16.73969688]
[1759104831881,0.66,210.37,210.34,16.73969688]
[1759104832074,1.19076982,210.36,210.34,16.73969688]
[1759104832272,0.66,210.37,210.34,16.73969688]
[1759104832461,1.19075218,210.36,210.34,16.73969688]
[1759104832662,37.2,210.38,210.34,16.73969688]
[1759104832869,1.9107169,210.37,210.34,16.73969688]
[1759104833085,1.1907169,210.36,210.34,16.73969688]
[1759104833287,0.72,210.37,210.34,16.73969688]
[1759104833586,1.1907169,210.36,210.34,16.73969688]
[1759104833785,0.72,210.37,210.34,16.73969688]
[1759104833969,1.19073454,210.36,210.34,16.73969688]
[1759104834158,37.92,210.38,210.34,16.73969688]
[1759104834362,1.9107169,210.37,210.34,16.73969688]
[1759104834688,1.1907169,210.36,210.34,16.73969688]
[1759104834868,37.2,210.38,210.35,0.66]
[1759104835071,1.19071642,210.37,210.35,0.66]
[1759104835266,1.19071642,210.36,210.34,16.73969688]
[1759104835470,37.92,210.38,210.34,16.73969688]
[1759104835784,1.9107169,210.37,210.34,16.73969688]
[1759104835982,1.9107169,210.36,210.34,16.73969688]
[1759104836289,37.92,210.38,210.34,16.73969688]
[1759104836477,1.9107169,210.37,210.34,16.73969688]
[1759104836676,1.1907169,210.36,210.34,16.73969688]
[1759104836886,0.72,210.37,210.34,16.73969688]
[1759104837191,1.19072384,210.36,210.34,16.73969688]
[1759104837378,0.72,210.37,210.34,16.73969688]
[1759104837564,1.19072384,210.36,210.34,16.73969688]
[1759104837763,0.72,210.37,210.34,16.73969688]
[1759104837996,1.19074148,210.36,210.34,16.73969688]
[1759104838179,1.19074148,210.35,210.34,16.73969688]
[1759104839092,3.20299751,210.4,210.34,41.17073424]
[1759104839383,3.20299751,210.41,210.35,0.66]
[1759104839574,37.9,210.42,210.35,0.66]
[1759104839775,3.20339699,210.41,210.35,0.66]
[1759104839979,37.9,210.42,210.35,0.66]
[1759104841193,3.2033969,210.41,210.36,4.75375546]
[1759104841485,3.9233969,210.4,210.36,4.75375546]
[1759104841667,0.72,210.39,210.36,4.75375546]
[1759104841863,3.20341313,210.41,210.36,16.63814412]
[1759104842081,3.92341313,210.4,210.36,16.63814412]
[1759104842290,0.72,210.39,210.36,16.63814412]
[1759104843178,0.72,210.39,210.36,11.88438866]
[1759104843583,37.18,210.42,210.36,11.88438866]
[1759104843893,3.92391262,210.41,210.36,11.88438866]
[1759104844093,3.92391262,210.4,210.36,11.88438866]
[1759104844297,37.18,210.42,210.36,11.88438866]
[1759104844597,0.72,210.39,210.36,11.88438866]
[1759104844967,3.92414961,210.41,210.37,0.66]
[1759104845168,40.38414961,210.4,210.36,11.88438866]
[1759104845385,37.18,210.41,210.38,0.66]
[1759104845570,37.9,210.41,210.36,12.54438866]
[1759104845778,3.20468574,210.4,210.36,12.54438866]
[1759104845973,37.9,210.41,210.36,12.54438866]
[1759104846177,3.20468888,210.4,210.37,0.66]
[1759104846388,37.18,210.41,210.37,0.66]
[1759104846594,37.18,210.41,210.36,11.88438866]
[1759104846595,3.20528957,210.4,210.36,11.88438866]
[1759104846786,37.9,210.41,210.36,11.88438866]
[1759104846978,26.0,210.42,210.37,0.66]
[1759104847296,3.20541091,210.41,210.38,16.6365624]
[1759104847498,63.18,210.42,210.38,16.6365624]
[1759104847690,3.20599952,210.41,210.38,16.6365624]
[1759104847887,63.9,210.42,210.38,16.6365624]
[1759104848074,3.92599594,210.41,210.38,16.6365624]
[1759104848396,3.20599594,210.4,210.38,16.6365624]
[1759104848589,63.18,210.42,210.38,4.75330354]
[1759104848797,0.72,210.4,210.38,4.75330354]
[1759104849092,3.20574467,210.39,210.38,4.75330354]
[1759104849292,3.20574467,210.39,210.35,11.88456026]
[1759104849293,3.20574467,210.39,210.35,16.63854171]
[1759104849500,0.72,210.4,210.35,17.29854171]
[1759104849799,3.20578422,210.39,210.35,17.29854171]
[1759104850096,0.72,210.4,210.35,17.29854171]
[1759104850294,3.20578882,210.39,210.36,0.66]
[1759104850494,63.18,210.42,210.37,16.63735322]
[1759104850799,3.92573612,210.41,210.37,16.63735322]
[1759104850997,3.20573612,210.4,210.37,16.63735322]
[1759104851176,3.20573612,210.39,210.37,16.63735322]
[1759104851500,0.72,210.41,210.37,16.63735322]
[1759104851797,3.20573272,210.4,210.37,16.63735322]
[1759104852099,3.20573272,210.39,210.37,16.63735322]
[1759104852304,0.71,210.4,210.37,4.75352949]
[1759104852597,3.20578968,210.39,210.37,4.75352949]
[1759104852802,0.71,210.4,210.37,4.75352949]
[1759104853497,0.71,210.4,210.37,16.63735322]
[1759104853698,63.89,210.42,210.37,16.63735322]
[1759104853890,3.20585504,210.41,210.37,17.31735322]
[1759104854081,26.71,210.42,210.37,17.31735322]
[1759104854280,3.20574347,210.41,210.37,16.63735322]
[1759104854579,63.87,210.42,210.38,0.68]
[1759104854793,3.20565015,210.41,210.38,0.68]
[1759104854994,63.87,210.42,210.38,0.68]
[1759104855195,3.20565148,210.41,210.38,0.68]
[1759104855390,63.87,210.42,210.38,0.68]
[1759104855583,3.20416055,210.41,210.39,4.75307761]
[1759104855783,3.2040819,210.4,210.39,4.75307761]
[1759104857984,3.2040819,210.4,210.37,16.63735322]
[1759104858179,0.71,210.41,210.37,17.31735322]
[1759104858398,3.91422387,210.4,210.37,16.63735322]
[1759104858702,0.71,210.4,210.37,16.63735322]
[1759104859397,63.16,210.42,210.37,11.88382373]
[1759104859597,3.20540541,210.41,210.38,0.68]
[1759104859800,3.20540541,210.4,210.37,11.88382373]
[1759104859981,63.87,210.42,210.37,12.56382373]
[1759104860295,3.91540541,210.41,210.37,11.88382373]
[1759104860497,3.20540541,210.4,210.37,11.88382373]
[1759104860707,0.71,210.41,210.37,11.88382373]
[1759104861003,3.20563328,210.4,210.37,11.88382373]
[1759104861207,0.71,210.41,210.37,11.88382373]
[1759104861392,3.8757018,210.4,210.37,16.63735322]
[1759104861591,0.67,210.39,210.37,16.63735322]
[1759104862811,0.67,210.39,210.37,11.88382373]
[1759104863110,63.16,210.42,210.37,11.88382373]
[1759104863312,3.87581529,210.41,210.37,11.88382373]
[1759104863512,3.87581529,210.4,210.37,11.88382373]
[1759104863686,63.83,210.42,210.37,11.88382373]
[1759104863892,3.8758762,210.41,210.37,11.88382373]
[1759104864104,3.8758762,210.4,210.37,11.88382373]
[1759104864411,0.67,210.4,210.37,11.88382373]
[1759104864909,63.16,210.42,210.35,5.44398145]
[1759104864910,0.67,210.39,210.35,4.75398145]
[1759104865118,0.67,210.38,210.35,4.75398145]
[1759104865309,0.67,210.37,210.35,4.75398145]
[1759104865891,37.16,210.39,210.35,16.63893509]
[1759104866189,0.67,210.38,210.35,16.63893509]
[1759104866395,37.16,210.39,210.35,16.63893509]
[1759104866696,0.67,210.38,210.35,16.63893509]
[1759104866995,0.67,210.37,210.35,16.63893509]
[1759104867198,37.83,210.39,210.35,16.63893509]
[1759104867405,0.67,210.38,210.35,16.63893509]
[1759104868902,37.16,210.39,210.35,16.63893509]
[1759104869209,37.83,210.39,210.35,17.32893509]
[1759104869394,37.16,210.39,210.35,16.63893509]
[1759104869597,0.67,210.38,210.35,16.63893509]
[1759104870709,37.16,210.39,210.35,16.63893509]
[1759104871012,0.67,210.37,210.35,16.63893509]
[1759104871204,37.16,210.39,210.35,16.63893509]
[1759104871413,3.87392004,210.38,210.35,16.63893509]
[1759104871606,0.67,210.38,210.35,16.63893509]
[1759104873510,0.67,210.37,210.35,4.75398145]
[1759104873994,0.67,210.36,210.35,4.75398145]
[1759104876708,3.8722162,210.36,210.34,0.1]
[1759104876909,40.3422162,210.35,210.34,0.1]
[1759104877295,41.0122162,210.35,210.34,0.1]
[1759104877612,41.0122162,210.35,210.34,4.85420747]
[1759104877613,40.3422162,210.35,210.34,4.85420747]
[1759104877910,37.14,210.35,210.34,4.85420747]
[1759104878120,40.34021538,210.36,210.34,4.85420747]
[1759104878311,37.81,210.36,210.34,4.85420747]
[1759104878721,0.67,210.36,210.34,4.85420747]
[1759104878913,37.81,210.36,210.34,4.85420747]
[1759104879799,0.67,210.35,210.34,4.85420747]
[1759104883198,0.67,210.35,210.34,0.1]
[1759104883721,0.67,210.35,210.34,4.85420747]
[1759104885620,13.59559401,210.32,210.29,0.1]
[1759104885821,41.00559008,210.31,210.29,0.1]
[1759104886128,13.59559401,210.3,210.29,0.1]
[1759104886312,16.78795407,210.3,210.29,0.1]
[1759104886504,19.36575938,210.3,210.29,0.1]
[1759104887626,41.96809073,210.29,210.28,0.1]
[1759104887807,45.16045079,210.29,210.28,0.1]
[1759104888011,45.83045079,210.29,210.28,0.1]
[1759104889109,82.97045079,210.29,210.28,0.1]
[1759104889827,87.72578865,210.29,210.28,0.1]
[1759104890931,82.97045079,210.29,210.28,0.1]
[1759104891312,45.83045079,210.29,210.28,0.1]
[1759104891628,82.97045079,210.29,210.28,0.1]
[1759104892007,53.92795407,210.29,210.28,0.1]
[1759104892207,54.61795407,210.29,210.28,0.1]
[1759104892613,17.47795407,210.29,210.28,0.1]
[1759104892812,54.61795407,210.29,210.28,0.1]
[1759104893329,50.73559401,210.29,210.28,0.1]
[1759104893717,26.0,210.29,210.28,0.1]
[1759104894016,63.14,210.29,210.28,0.1]
[1759104894217,26.0,210.29,210.28,0.1]
[1759104894516,63.14,210.29,210.28,0.1]
[1759104895211,26.0,210.29,210.28,0.1]
[1759104895417,63.14,210.29,210.28,0.1]
[1759104896433,26.0,210.29,210.28,0.1]
[1759104896636,63.14,210.29,210.28,4.855564]
[1759104897018,63.14,210.29,210.28,0.1]
[1759104897737,37.14,210.29,210.28,5.525564]
[1759104899227,37.14,210.29,210.28,4.855564]
[1759104899737,37.14,210.29,210.28,5.525564]
[1759104900842,37.14,210.29,210.28,4.855564]
[1759104901041,37.14,210.3,210.28,5.525564]
[1759104901437,37.14,210.3,210.28,4.855564]
[1759104901832,3.86891218,210.32,210.28,4.855564]
[1759104902040,37.14,210.31,210.29,0.67]
[1759104902238,0.69,210.37,210.29,0.67]
[1759104902421,37.14,210.36,210.29,0.67]
[1759104902626,3.18010019,210.38,210.29,0.67]
[1759104902939,37.14,210.37,210.3,16.6428911]
[1759104903124,37.14,210.36,210.31,0.67]
[1759104903849,13.59559401,210.4,210.31,0.67]
[1759104904055,37.14,210.39,210.31,0.67]
[1759104904236,37.83,210.39,210.31,0.67]
[1759104904424,19.14819092,210.38,210.3,16.6428911]
[1759104904628,13.59559401,210.36,210.3,16.6428911]
[1759104904849,37.14,210.35,210.3,17.3128911]
[1759104905149,0.69,210.37,210.31,0.67]
[1759104905342,37.14,210.35,210.31,0.67]
[1759104905651,37.14,210.34,210.31,0.67]
[1759104906239,37.83,210.34,210.3,11.88777936]
[1759104906453,0.69,210.34,210.3,12.55777936]
[1759104906643,37.83,210.34,210.3,12.55777936]
[1759104906833,37.14,210.34,210.3,12.55777936]
[1759104907339,37.14,210.34,210.3,17.3128911]
[1759104908444,37.83,210.34,210.3,17.3128911]
[1759104908953,37.83,210.34,210.3,16.6428911]
[1759104909246,0.69,210.33,210.29,4.75533786]
[1759104909451,0.69,210.32,210.29,4.75533786]
[1759104909625,0.69,210.31,210.29,4.75533786]
[1759104909823,37.81,210.31,210.29,4.75533786]
[1759104910052,37.12,210.31,210.29,4.75533786]
[1759104910252,37.12,210.31,210.29,5.42533786]
[1759104910450,37.12,210.31,210.29,4.75533786]
[1759104910751,3.87010019,210.33,210.29,4.75533786]
[1759104910947,37.81,210.32,210.29,4.75533786]
[1759104911266,37.81,210.32,210.28,0.1]
[1759104911267,3.87010019,210.31,210.28,0.1]
[1759104911424,16.7756942,210.3,210.28,0.1]
[1759104911630,53.8956942,210.29,210.28,0.1]
[1759104911942,54.5956942,210.29,210.28,0.1]
[1759104913252,80.5956942,210.29,210.28,0.1]
[1759104913831,67.00010019,210.29,210.28,0.1]
[1759104915545,82.96819092,210.29,210.28,0.1]
[1759104915945,87.72352878,210.29,210.28,0.1]
[1759104916142,89.63133409,210.29,210.28,0.1]
[1759104916341,63.63133409,210.29,210.28,0.1]
[1759104916649,39.59559401,210.26,210.25,0.1]
[1759104916864,79.8956942,210.26,210.25,0.1]
[1759104917156,80.5956942,210.26,210.25,0.1]
[1759104918355,85.35171056,210.26,210.25,0.1]
[1759104920957,13.59559401,210.25,210.23,0.1]
[1759104921142,13.59559401,210.25,210.21,0.1]
[1759104921143,58.64068764,210.24,210.21,0.1]
[1759104921336,16.7756942,210.23,210.21,0.1]
[1759104921534,13.59559401,210.17,210.13,0.1]
[1759104921732,39.57249672,210.16,210.13,0.1]
[1759104921929,40.25249672,210.16,210.13,0.1]
[1759104922153,0.68,210.15,210.13,0.1]
[1759104922432,50.79559401,210.14,210.13,0.1]
[1759104922653,51.47559401,210.14,210.13,0.1]
[1759104923131,13.59559401,210.14,210.13,0.1]
[1759104923364,13.59559401,210.14,210.06,0.1]
[1759104923365,39.59559401,210.1,210.06,0.1]
[1759104923568,13.59559401,210.08,210.06,0.1]
[1759104923873,51.17559401,210.07,210.06,0.1]
[1759104924151,37.58,210.07,210.06,0.1]
[1759104924541,37.58,210.08,210.06,0.76]
[1759104924745,37.58,210.1,210.06,5.52051423]
[1759104924957,37.6,210.1,210.07,0.66]
[1759104925266,26.0,210.12,210.07,0.66]
[1759104925440,37.6,210.11,210.07,0.66]
[1759104925644,0.68,210.15,210.07,0.66]
[1759104925946,37.6,210.14,210.07,0.66]
[1759104926340,37.6,210.14,210.08,16.66031987]
[1759104926554,37.6,210.14,210.09,0.66]
[1759104927562,37.6,210.14,210.08,16.66031987]
[1759104927758,37.6,210.14,210.1,0.16]
[1759104928142,37.6,210.14,210.08,16.66031987]
[1759104929452,39.59559401,210.17,210.08,16.66031987]
[1759104929657,37.58,210.16,210.08,16.66031987]
[1759104929857,37.58,210.16,210.09,0.66]
[1759104930370,37.58,210.16,210.1,16.65873392]
[1759104930544,37.58,210.16,210.1,17.31873392]
[1759104930749,0.68,210.16,210.1,17.31873392]
[1759104931057,0.68,210.15,210.1,16.65873392]
[1759104931252,37.56,210.16,210.1,16.65873392]
[1759104931253,0.68,210.14,210.1,16.65873392]
[1759104931667,0.68,210.13,210.08,5.41986626]
[1759104932242,0.68,210.13,210.08,16.82009474]
[1759104932445,0.68,210.15,210.08,16.82009474]
[1759104933260,37.56,210.16,210.08,16.82009474]
[1759104933568,0.68,210.14,210.08,16.66009474]
[1759104934477,0.68,210.13,210.08,16.66009474]
[1759104934778,0.68,210.15,210.08,12.15022848]
[1759104935264,37.52,210.16,210.09,0.25]
[1759104935682,38.2,210.16,210.09,0.25]
[1759104936676,0.68,210.16,210.1,16.65873392]
[1759104936847,38.18,210.16,210.1,16.65873392]
[1759104937049,26.68,210.19,210.11,0.25]
[1759104937255,37.5,210.18,210.11,0.25]
[1759104937975,14.31331855,210.24,210.11,0.25]
[1759104938145,26.68,210.21,210.11,0.25]
[1759104938348,37.5,210.2,210.11,0.25]
[1759104938750,0.68,210.19,210.12,16.65714828]
[1759104939288,0.68,210.18,210.12,16.65714828]
[1759104941771,0.68,210.2,210.13,0.25]
[1759104942076,0.68,210.22,210.13,0.25]
[1759104943778,0.68,210.22,210.14,16.65556295]
[1759104943976,0.68,210.22,210.15,0.25]
[1759104944662,0.68,210.22,210.14,16.65556295]
[1759104944857,0.68,210.21,210.14,16.65556295]
[1759104945161,0.68,210.21,210.14,16.90556295]
[1759104945557,0.68,210.21,210.14,40.69922431]
[1759104949083,0.68,210.21,210.15,0.25]
[1759104949488,38.14,210.23,210.15,0.25]
[1759104950069,38.08,210.23,210.15,0.25]
[1759104951261,38.08,210.23,210.16,16.65397791]
[1759104951475,0.68,210.22,210.16,16.65397791]
[1759104951673,0.68,210.21,210.16,16.65397791]
[1759104951887,0.68,210.2,210.16,16.65397791]
[1759104952291,0.68,210.21,210.16,16.90397791]
[1759104952596,0.68,210.2,210.16,16.65397791]
[1759104953192,0.68,210.2,210.16,11.89569851]
[1759104955690,3.16707168,210.22,210.16,11.89569851]
[1759104955691,0.68,210.19,210.16,11.89569851]
[1759104956566,3.18038345,210.22,210.16,11.89569851]
[1759104956771,0.68,210.21,210.16,11.89569851]
[1759104956994,0.68,210.2,210.16,11.89569851]
[1759104957182,37.4,210.23,210.16,11.89569851]
[1759104957373,0.68,210.19,210.15,4.75850582]
[1759104957580,0.68,210.18,210.15,4.75850582]
[1759104957791,0.68,210.17,210.15,4.75850582]
[1759104958172,13.59559401,210.21,210.15,4.75850582]
[1759104958173,0.68,210.16,210.15,4.75850582]
[1759104958375,0.68,210.16,210.1,16.65873392]
[1759104958584,0.68,210.15,210.1,16.65873392]
[1759104958787,0.68,210.15,210.1,16.90873392]
[1759104959781,0.68,210.17,210.1,16.90873392]
[1759104960297,0.68,210.16,210.1,16.90873392]
[1759104964581,0.68,210.17,210.11,0.25]
[1759104964798,3.18533526,210.18,210.13,26.0]
[1759104965002,0.68,210.22,210.14,0.25]
[1759104965205,3.18577175,210.21,210.14,0.25]
[1759104965501,0.68,210.21,210.14,0.25]
[1759104966084,0.68,210.21,210.15,16.65477039]
[1759104966310,0.68,210.2,210.15,16.65477039]
[1759104966688,0.68,210.2,210.15,16.90477039]
[1759104967094,0.68,210.23,210.16,0.25]
[1759104967399,3.86898996,210.22,210.15,16.65477039]
[1759104967608,0.68,210.23,210.16,0.25]
[1759104967781,3.18887333,210.22,210.16,0.25]
[1759104967984,0.68,210.23,210.17,16.65318551]
[1759104968202,3.86887598,210.22,210.17,16.65318551]
[1759104968404,37.24,210.26,210.17,16.65318551]
[1759104968709,3.86905563,210.25,210.17,16.65318551]
[1759104968900,3.86905563,210.24,210.17,16.65318551]
[1759104969104,3.86905563,210.23,210.15,4.75850582]
[1759104969307,3.86905563,210.22,210.15,4.75850582]
[1759104969489,3.86905563,210.21,210.15,4.75850582]
[1759104969798,3.86905563,210.2,210.15,16.65477039]
[1759104970002,0.68,210.19,210.15,11.89626457]
[1759104970393,0.68,210.18,210.15,11.89626457]
[1759104970917,0.68,210.21,210.15,11.89626457]
[1759104971107,0.68,210.23,210.16,0.25]
[1759104971306,3.19182739,210.22,210.16,0.25]
[1759104971482,3.19182739,210.21,210.16,0.25]
[1759104971689,0.68,210.23,210.17,0.25]
[1759104972189,0.68,210.23,210.18,16.65239318]
[1759104972710,3.19252428,210.22,210.18,16.65239318]
[1759104972922,0.68,210.23,210.18,16.65239318]
[1759104973098,3.19248829,210.22,210.19,0.25]
[1759104973302,0.65,210.23,210.18,16.65239318]
[1759104973601,3.19116444,210.22,210.18,16.65239318]
[1759104973915,0.65,210.22,210.18,16.65239318]
[1759104974104,0.65,210.26,210.2,16.65080874]
[1759104974302,3.84123743,210.25,210.2,16.65080874]
[1759104974498,3.19123743,210.24,210.2,16.65080874]
[1759104974796,3.19123743,210.23,210.2,16.65080874]
[1759104975002,0.65,210.24,210.2,16.65080874]
[1759104975194,37.22,210.28,210.2,16.65080874]
[1759104975195,3.19176124,210.23,210.2,16.65080874]
[1759104975400,0.65,210.26,210.2,16.65080874]
[1759104975610,3.1917887,210.25,210.2,16.65080874]
[1759104975809,3.1917887,210.24,210.2,16.90080874]
[1759104976012,3.1917887,210.23,210.2,16.90080874]
[1759104976196,0.65,210.25,210.2,16.90080874]
[1759104976397,3.191627,210.24,210.2,16.90080874]
[1759104976694,3.191627,210.23,210.2,16.90080874]
[1759104976889,0.65,210.25,210.2,16.90080874]
[1759104977090,3.19191425,210.24,210.2,16.90080874]
[1759104977308,0.65,210.25,210.2,16.90080874]
[1759104978113,0.65,210.24,210.18,0.25]
[1759104978490,0.65,210.26,210.18,0.25]
[1759104978787,3.19207762,210.25,210.18,0.25]
[1759104978992,0.65,210.26,210.18,0.25]
[1759104980295,0.65,210.26,210.19,16.65160092]
[1759104980604,0.65,210.25,210.19,16.90160092]
[1759104981210,0.65,210.25,210.19,40.68960225]
[1759104981813,3.84375097,210.25,210.19,40.68960225]
[1759104982116,0.65,210.25,210.19,40.68960225]
[1759104987020,0.69,210.24,210.19,40.43960225]
[1759104987517,0.69,210.24,210.19,40.68960225]
[1759104987900,63.18,210.29,210.19,40.43960225]
[1759104988103,3.88549437,210.28,210.19,40.43960225]
[1759104988297,3.88549437,210.27,210.19,40.43960225]
[1759104988494,3.88549437,210.26,210.19,40.43960225]
[1759104988704,0.69,210.26,210.19,40.68960225]
[1759104989115,0.69,210.26,210.19,40.43960225]
[1759104989317,0.69,210.26,210.2,0.25]
[1759104990620,0.69,210.26,210.19,40.43960225]
[1759104990813,0.69,210.25,210.19,40.68960225]
[1759104991125,0.69,210.25,210.21,16.65001664]
[1759104992130,0.69,210.26,210.21,12.14286903]
[1759104992303,3.88402005,210.26,210.21,12.14286903]
[1759104992503,0.69,210.26,210.21,12.14286903]
[1759104993008,0.69,210.25,210.21,12.14286903]
[1759104993521,0.69,210.25,210.21,16.65001664]
[1759104993720,3.19402005,210.26,210.21,40.43575471]
[1759104993917,0.69,210.31,210.22,0.25]
[1759104994909,0.69,210.31,210.22,37.41]
[1759104995117,0.69,210.3,210.23,0.25]
[1759104995523,0.69,210.3,210.24,16.64764078]
[1759104995713,0.69,210.29,210.24,16.64764078]
[1759104996111,0.69,210.29,210.24,16.89764078]
[1759104997327,0.69,210.28,210.24,16.64764078]
[1759104997523,0.69,210.27,210.24,16.64764078]
[1759104998107,0.69,210.29,210.24,16.64764078]
[1759104998430,0.69,210.28,210.24,16.64764078]
[1759104998609,13.59559401,210.34,210.24,16.64764078]
[1759104998802,0.69,210.27,210.24,16.64764078]
[1759105000128,0.69,210.26,210.24,4.75646879]
[1759105000307,0.69,210.25,210.24,4.75646879]
[1759105001115,0.69,210.25,210.21,11.89279862]
[1759105001610,0.69,210.24,210.21,11.89279862]
[1759105004015,0.69,210.24,210.21,16.64994623]
[1759105004629,0.69,210.26,210.21,16.89994623]
[1759105005529,1.5202982,210.29,210.21,16.64994623]
[1759105005739,0.69,210.28,210.21,16.64994623]
[1759105005912,0.69,210.27,210.21,16.64994623]
[1759105006416,3.88305468,210.27,210.21,16.89994623]
[1759105006623,0.69,210.27,210.21,16.89994623]
[1759105007010,3.88392979,210.27,210.21,16.89994623]
[1759105007339,0.69,210.27,210.21,16.89994623]
[1759105007713,3.88392979,210.27,210.21,16.89994623]
[1759105007933,0.69,210.27,210.21,16.89994623]
[1759105008938,0.69,210.27,210.21,16.64994623]
[1759105009137,0.69,210.29,210.22,0.25]
[1759105009346,3.19597786,210.28,210.22,0.25]
[1759105009515,0.69,210.29,210.22,0.25]
[1759105009838,0.69,210.29,210.23,16.64843266]
[1759105010132,0.69,210.31,210.24,0.25]
[1759105010325,0.69,210.33,210.25,37.16]
[1759105010527,3.19803705,210.32,210.26,0.25]
[1759105010716,3.19803705,210.31,210.26,0.25]
[1759105010916,3.97321572,210.36,210.26,0.25]
[1759105011125,0.67,210.32,210.26,0.25]
[1759105011337,0.67,210.35,210.29,26.0]
[1759105011520,3.19860219,210.34,210.3,0.25]
[1759105011723,0.67,210.37,210.3,0.25]
[1759105011921,3.19880499,210.36,210.3,0.25]
[1759105012124,3.19880499,210.35,210.31,16.64209975]
[1759105012446,3.19880499,210.34,210.31,16.64209975]
[1759105012652,3.19880499,210.36,210.31,16.64209975]
[1759105012824,3.19880499,210.35,210.31,16.89209975]
[1759105013019,3.19880499,210.34,210.31,16.89209975]
[1759105013236,0.67,210.36,210.31,16.89209975]
[1759105013448,3.1966805,210.35,210.31,16.64209975]
[1759105013625,0.67,210.35,210.31,16.64209975]
[1759105013937,0.67,210.37,210.31,16.89209975]
[1759105014125,3.1966157,210.36,210.31,16.89209975]
[1759105014327,3.1966157,210.35,210.31,16.89209975]
[1759105014528,0.67,210.36,210.31,16.89209975]
[1759105014725,3.86594792,210.35,210.31,11.88721411]
[1759105014927,0.67,210.35,210.31,11.88721411]
[1759105015343,3.86561715,210.34,210.3,4.75511174]
[1759105015540,3.86561715,210.33,210.3,4.75511174]
[1759105015733,3.86561715,210.32,210.3,4.75511174]
[1759105016039,0.67,210.31,210.3,4.75511174]
[1759105016426,0.67,210.31,210.28,11.88847996]
[1759105016627,0.67,210.3,210.28,11.88847996]
[1759105016845,0.67,210.29,210.27,4.75579017]
[1759105017036,0.67,210.28,210.27,4.75579017]
[1759105018149,0.67,210.28,210.25,11.89019987]
[1759105018150,0.67,210.28,210.25,4.75609635]
[1759105018479,3.86520572,210.27,210.22,11.89206657]
[1759105018743,6.23940031,210.26,210.16,11.89542579]
[1759105018944,3.86520572,210.25,210.16,11.89542579]
[1759105019146,3.86520572,210.24,210.16,11.89542579]
[1759105019330,0.67,210.23,210.16,11.89542579]
[1759105019530,0.67,210.22,210.16,11.89542579]
[1759105019730,0.67,210.21,210.16,11.89542579]
[1759105019930,2.37419459,210.23,210.16,11.89542579]
[1759105019931,0.67,210.2,210.16,11.89542579]
[1759105021842,3.04419459,210.23,210.16,12.14542579]
[1759105022337,0.67,210.22,210.16,16.65370519]
[1759105024244,0.67,210.21,210.16,16.65370519]